[Event "2nd Serbia Open Masters 2022"]
[Site "Novi Sad"]
[Date "2022.06.30"]
[Round "3.32"]
[White "Arjun Kalyan"]
[Black "Vardaan Nagpal"]
[Result "1-0"]
[ECO "C42"]
[WhiteElo "2477"]
[BlackElo "2357"]
[Annotator "TA"]
[PlyCount "79"]
[EventDate "2022.06.28"]
[EventType "swiss"]
[EventCountry "SRB"]
[SourceTitle "playchess.com"]
[Source "ChessBase"]
[SourceQuality "1"]
[TimeControl "40/5400+30:900+30"]

{[%evp 17,79,5,9,3,17,24,25,18,80,67,85,0,0,0,0,-94,-87,-115,-109,-200,-201,-199,-213,-198,-209,-169,0,-332,-236,-404,-282,-288,-282,-268,-252,-374,-345,-356,0,0,217,235,222,233,220,207,466,468,456,414,431,447,710,579,578,564,996,966,906,882,29986,29987,29986,29987]} 1. e4 {[%emt 0:00:03]} e5 {[%emt 0:00:05]} 2. Nf3 {[%emt 0:00:04]} Nf6 {[%emt 0:00:04]} 3. Nxe5 {[%emt 0:00:15]} d6 {[%emt 0:00:01]} 4. Nf3 {[%emt 0:00:10]} Nxe4 {[%emt 0:00:04]} 5. Nc3 {[%emt 0:00:06]} Nxc3 {[%emt 0:00:32]} 6. dxc3 {[%emt 0:00:03]} Be7 {[%emt 0:00:07]} 7. Bf4 {[%emt 0:00:08]} O-O {[%emt 0:00:26]} 8. Qd2 {[%emt 0:00:04]} Nd7 {[%emt 0:06:33]} 9. O-O-O {[%emt 0:00:20]} Nc5 {[%emt 0:00:17]} 10. h4 {[%emt 0:00:10] 10.Bc4 is the modern continuation. C42: Petroff Defence: 3 Nxe5 and unusual White 3rd moves.} Re8 {[%emt 0:09:00]} 11. Ng5 {[%emt 0:00:37] Against Ne4} h6 {[%emt 0:15:58]} 12. Bc4 {[%emt 0:00:12] [#] White has an edge.} Ne6 $146 {[%emt 0:08:47]} (12... hxg5 13. hxg5 Be6 14. Rh2 $15) (12... Bxg5 $11 13. hxg5 Ne4) ({Predecessor:} 12... hxg5 13. hxg5 d5 14. Bxd5 Be6 15. Qe3 Bd6 16. Bxd6 cxd6 17. Qg3 Rc8 18. b4 Bxd5 19. Rxd5 {½-½ (34) Boehme,S (2482)-Bogomolov,A (2183) LSS email 2016}) 13. Bxe6 {[%emt 0:26:17] 0x0.00207cdfa097dp-1022s more active pieces.} Bxe6 {[%emt 0:12:33] [#]} 14. Qd3 $1 {[%emt 0:13:20]} hxg5 $11 {[%emt 0:07:01]} 15. hxg5 {[%emt 0:01:10] Qh7+ would kill now.} f5 {[%emt 0:00:03]} (15... Bxg5 $2 16. Qh7+ Kf8 17. Qh8+ Ke7 18. Bxg5+ Kd7 19. Bxd8 $18) 16. Qg3 {[%emt 0:29:47]} (16. gxf6 $2 Bxf6 17. Be3 Qe7 $19) (16. Qh3 $1 $11 Bxg5 17. Qh8+ Kf7 18. Qh5+ g6 19. Qxg5 Qxg5 20. Bxg5) 16... Kf8 {[%emt 0:16:49]} 17. Rh8+ {[%emt 0:02:05]} Bg8 {[%emt 0:00:04]} 18. Qd3 {[%emt 0:10:30]} (18. b3 $17 {was necessary.}) 18... Bxg5 $19 {[%emt 0:04:33]} 19. Qxf5+ {[%emt 0:00:12]} Bf6 {[%emt 0:00:50]} 20. Qd5 {[%emt 0:03:33]} Ke7 {[%emt 0:00:09]} 21. Qxb7 {[%emt 0:01:49] [#]} Qd7 {[%emt 0:03:14]} (21... Kf8 22. Qd5 Ke7 23. Qe4+ (23. Re1+ Kd7 $17) 23... Be6 24. Rxe8+ Qxe8 25. Qb7 $17) (21... Bxa2 22. Rxe8+ (22. Re1+ Be6 $17) 22... Kxe8 23. b3 $14) ({Black should play} 21... Rb8 $1 $19 {[%cal Rb8b7]} 22. Qxa7 Kf8) 22. g4 $2 {[%emt 0:06:21][%mdl 8192]} (22. Rxg8 $1 $11 Rxg8 23. Re1+ Be5 24. Bxe5 dxe5 25. Rxe5+ Kf6 26. Rc5) 22... Rab8 {[%emt 0:05:59]} (22... Bxa2 23. Rxe8+ Rxe8 24. g5 Bxc3 25. bxc3 $11) 23. Qxa7 {[%emt 0:00:28]} (23. Qe4+ Kd8 24. Qd3) 23... Ra8 {[%emt 0:02:14]} 24. Qb7 {[%emt 0:00:04]} Rxa2 {[%emt 0:02:51] ...Ra1+ is the strong threat.} 25. Re1+ {[%emt 0:02:57]} Be5 {[%emt 0:03:00] And now ...Ra1+ would win.} 26. Re3 {[%emt 0:00:29]} (26. Kd2 $142 Kf8 27. Qd5) 26... Ra1+ {[%emt 0:00:14]} 27. Kd2 {[%emt 0:00:01]} Be6 $2 {[%emt 0:01:11]} (27... Qxg4 $19 {[%csl Gg4][%cal Ra1d1]} 28. Qf3 Qxf3 29. Rxf3 Rf1 30. Bxe5 dxe5) 28. Bg5+ $11 {[%emt 0:01:10]} Kf7 $2 {[%emt 0:00:39] [#]} (28... Bf6 $1 $11 29. Bxf6+ Kxf6 30. g5+ Kxg5 31. Qg2+ Bg4 32. Rexe8 (32. f4+ $2 Kf5 $19) 32... Rd1+ 33. Ke3 Re1+ 34. Kd2 Rxe8 35. Rxe8 Qxe8) 29. Rf3+ $1 $18 {[%emt 0:00:20]} ({Don't go for} 29. Qf3+ $2 Kg6 30. Qe4+ Kxg5 $19) 29... Bf6 {[%emt 0:00:27] [#]} 30. Rxf6+ $1 {[%emt 0:01:23][%mdl 512]} gxf6 {[%emt 0:00:03]} 31. Rh7+ {[%emt 0:00:01]} Kg8 $2 {[%emt 0:00:49]} (31... Kg6 {might work better.} 32. Rxd7 Bxd7) 32. Rxd7 {[%emt 0:00:06]} Bxd7 {[%emt 0:00:14]} 33. Bxf6 {[%emt 0:01:03]} Bxg4 {[%emt 0:01:06][%csl Gg4][%cal Ra1d1]} 34. c4 {[%emt 0:01:05]} ({Less strong is} 34. f3 Ree1 35. c4 Rad1+ 36. Kc3 Re3+ 37. Kb4 Rxf3 $18) 34... Rd1+ {[%emt 0:00:40]} 35. Kc3 {[%emt 0:00:00]} Kf7 {[%emt 0:00:48]} 36. Bh4 {[%emt 0:00:20]} Re2 {[%emt 0:00:30]} 37. Qxc7+ {[%emt 0:00:17]} Kg6 {[%emt 0:00:06]} 38. Qd8 {[%emt 0:00:29] White wants to mate with Qf6+.} Be6 {[%emt 0:00:43]} 39. Qg5+ {[%emt 0:00:09]} Kh7 {[%emt 0:00:05]} 40. Qh5+ {[%emt 0:00:00] Never resign too early!  Weighted Error Value: White=0.38/Black=0.91} 1-0

[Event "2nd Serbia Open Masters 2022"]
[Site "Novi Sad"]
[Date "2022.06.30"]
[Round "3.33"]
[White "Parkhov, Yair"]
[Black "Levin, Guy"]
[Result "1-0"]
[ECO "E49"]
[WhiteElo "2460"]
[BlackElo "2354"]
[Annotator "TA"]
[PlyCount "112"]
[EventDate "2022.06.28"]
[EventType "swiss"]
[EventCountry "SRB"]
[SourceTitle "playchess.com"]
[Source "ChessBase"]
[SourceQuality "1"]
[TimeControl "40/5400+30:900+30"]

{[%evp 23,112,15,24,0,34,32,37,22,58,31,32,25,63,28,39,45,55,44,63,26,58,0,0,0,0,0,0,0,27,35,23,41,126,129,134,106,131,33,52,47,31,29,20,31,36,39,33,0,0,0,-12,0,0,-12,-12,-14,-3,-6,-7,-8,0,0,0,0,17,0,0,3,30,17,151,151,269,259,234,250,264,250,255,250,720,617,822,760,4594,4130,29968,29969,29980,29978,29994]} 1. d4 {[%emt 0:00:03]} d5 {[%emt 0:00:15]} 2. c4 {[%emt 0:00:02]} e6 {[%emt 0:00:05]} 3. Nc3 {[%emt 0:00:04]} Bb4 {[%emt 0:00:17]} 4. e3 {[%emt 0:06:55]} Nf6 {[%emt 0:01:32]} 5. a3 {[%emt 0:00:37]} Bxc3+ {[%emt 0:01:26]} 6. bxc3 {[%emt 0:00:05]} c5 {[%emt 0:00:52]} 7. cxd5 {[%emt 0:00:18]} exd5 {[%emt 0:00:16]} 8. Bd3 {[%emt 0:00:06]} O-O {[%emt 0:00:40]} 9. Ne2 {[%emt 0:00:05]} b6 {[%emt 0:07:34]} 10. O-O {[%emt 0:00:49]} Ba6 {[%emt 0:00:15]} 11. Bxa6 {[%emt 0:00:54]} Nxa6 {[%emt 0:00:02][%cal Bb8a6,Ba6c7,Bc7e6][%mdl 32]} 12. Qd3 {[%emt 0:00:07]} Qc8 {[%emt 0:45:30] [#]} 13. Nf4 $146 {[%emt 0:17:51] E49: Nimzo-Indian: Rubinstein: 5 Bd3 d5 6 a3 Bxc3+ 7 bxc3.} ({Predecessor:} 13. f3 Re8 14. Ng3 Qb7 15. Ra2 Re6 16. Re2 Rae8 17. Rfe1 h5 18. Nh1 b5 19. Nf2 b4 20. cxb4 cxb4 21. Qb3 {0-1 (38) Navara,D (2697)-Abasov,N (2664) Tornelo INT 2021}) 13... cxd4 {[%emt 0:04:26]} 14. cxd4 {[%emt 0:00:33]} Nc7 {[%emt 0:00:16]} 15. f3 {[%emt 0:13:56] White is slightly better.} Re8 {[%emt 0:00:06]} 16. Bd2 {[%emt 0:02:11]} Ne6 {[%emt 0:01:44]} 17. Ne2 {[%emt 0:04:44]} Qd7 {[%emt 0:01:44]} 18. Be1 {[%emt 0:06:46]} h6 {[%emt 0:08:49]} 19. Bh4 {[%emt 0:07:51]} Ng5 {[%emt 0:00:52]} 20. Ng3 {[%emt 0:02:44]} Rac8 {[%emt 0:06:09]} 21. Rae1 {[%emt 0:08:42]} Qc6 {[%emt 0:03:57]} 22. Bxg5 {[%emt 0:06:48]} (22. Nf5 $1 $14) 22... hxg5 $11 {[%emt 0:00:02]} 23. Qf5 {[%emt 0:00:13]} Nh7 $1 {[%emt 0:00:01]} 24. e4 {[%emt 0:00:23]} Qc3 {[%emt 0:00:58]} 25. Rd1 {[%emt 0:01:34]} Qxa3 {[%emt 0:02:30]} 26. Qxd5 {[%emt 0:02:15]} Red8 {[%emt 0:00:23]} 27. Qe5 {[%emt 0:02:31]} f6 {[%emt 0:04:05]} (27... g6 $14) 28. Qe6+ $16 {[%emt 0:00:59]} Kh8 {[%emt 0:00:02]} 29. Qf7 {[%emt 0:02:29] Threatens to win with Nf5.} Nf8 {[%emt 0:01:36] [#]} 30. d5 {[%emt 0:06:55]} (30. f4 $1 $16) 30... Rd7 $14 {[%emt 0:00:43]} 31. Qh5+ {[%emt 0:00:07]} Kg8 {[%emt 0:00:02]} 32. Qg4 {[%emt 0:00:33]} Qe3+ {[%emt 0:01:44]} 33. Kh1 {[%emt 0:00:12] aiming for f4.} Qf4 {[%emt 0:00:01]} 34. Qxf4 {[%emt 0:01:15]} gxf4 {[%emt 0:00:02]} 35. Nh5 {[%emt 0:01:20]} Ng6 {[%emt 0:00:05]} 36. g3 {[%emt 0:00:42]} fxg3 {[%emt 0:00:09]} 37. Rg1 {[%emt 0:01:57]} Kf7 {[%emt 0:01:41] ...gxh2 is the strong threat.} 38. Rxg3 {[%emt 0:01:46] [#] Black must now prevent Rdg1.} Rh8 {[%emt 0:00:13]} 39. Rdg1 {[%emt 0:00:05]} Rxh5 {[%emt 0:03:29]} 40. Rxg6 $11 {[%emt 0:00:00][%mdl 4096] Endgame KRR-KRR} Kf8 {[%emt 0:00:00]} 41. Rc1 {[%emt 0:01:25]} Kf7 {[%emt 0:03:28]} 42. Rg2 {[%emt 0:02:58]} Rh3 {[%emt 0:03:43]} 43. Rf2 {[%emt 0:00:54]} g5 {[%emt 0:00:19]} 44. Rc6 {[%emt 0:03:10]} Rh4 {[%emt 0:05:53]} 45. Kg2 {[%emt 0:03:32]} b5 {[%emt 0:03:44][%cal Of6f5]} 46. Ra2 {[%emt 0:02:32]} f5 {[%emt 0:01:12]} (46... Kg6 $11 {keeps the balance.}) 47. e5 $16 {[%emt 0:02:47] Hoping for e6+. White is more active.} ({Worse is} 47. exf5 b4 $11) 47... Rxd5 {[%emt 0:00:01]} (47... Re7 $16 {might work better.}) 48. Rxa7+ $18 {[%emt 0:00:06]} Ke8 {[%emt 0:00:07]} 49. Re6+ {[%emt 0:00:25]} Kf8 {[%emt 0:00:49]} (49... Kd8 $2 50. Rg6 Rd2+ 51. Kf1 $18) 50. Rf6+ {[%emt 0:00:10]} Ke8 {[%emt 0:00:13]} 51. Rxf5 {[%emt 0:00:40]} g4 {[%emt 0:05:29]} (51... Rd7 52. Ra8+ Rd8 53. Rxd8+ (53. Rxg5 Rxa8 54. Rg8+ Kf7 $16) 53... Kxd8 54. Rxg5 Kc7) 52. Kg3 $1 {[%emt 0:00:37][%csl LRg4,LRh4]} Rh3+ {[%emt 0:00:01]} 53. Kxg4 {[%emt 0:00:11]} Rxh2 {[%emt 0:00:02]} 54. f4 {[%emt 0:00:35]} b4 {[%emt 0:01:32]} 55. Rff7 {[%emt 0:00:13]} Rg2+ {[%emt 0:01:15]} 56. Kf5 {[%emt 0:00:52]} b3 {[%emt 0:00:06] Weighted Error Value: White=0.12 (very precise) /Black=0.40} 1-0

[Event "2nd Serbia Open Masters 2022"]
[Site "Novi Sad"]
[Date "2022.06.30"]
[Round "3.34"]
[White "Marn, Jan"]
[Black "Pranav Anand"]
[Result "0-1"]
[ECO "E04"]
[WhiteElo "2282"]
[BlackElo "2479"]
[Annotator "TA"]
[PlyCount "108"]
[EventDate "2022.06.28"]
[EventType "swiss"]
[EventCountry "SRB"]
[SourceTitle "playchess.com"]
[Source "ChessBase"]
[SourceQuality "1"]
[TimeControl "40/5400+30:900+30"]

{[%evp 15,108,29,45,40,35,29,35,39,24,19,39,32,28,15,17,-36,-38,-31,-44,-31,-22,-25,-46,-35,-34,-65,-39,-123,-30,-29,-39,-41,-38,-41,-28,-55,-40,-37,0,0,0,-11,-17,-10,0,-108,-83,-87,-102,-138,0,0,0,-89,-94,-127,-130,-187,-195,-195,-153,-431,-388,-563,-597,-29986,-641,-833,-790,-29987,-639,-634,-624,-752,-732,-681,-656,-713,-673,-665,-662,-574,-545,-743,-729,-719,-684,-684,-684,-684,-684,-662,-645,-553,-473]} 1. d4 {[%emt 0:00:04]} d5 {[%emt 0:00:13]} 2. c4 {[%emt 0:00:14]} e6 {[%emt 0:00:06]} 3. g3 {[%emt 0:00:06]} Nf6 {[%emt 0:00:04]} 4. Nf3 {[%emt 0:00:11]} dxc4 {[%emt 0:00:08]} 5. Bg2 {[%emt 0:00:11]} a6 {[%emt 0:00:04]} 6. O-O {[%emt 0:00:24]} Nc6 {[%emt 0:00:03]} 7. e3 {[%emt 0:00:34]} Bd7 {[%emt 0:00:17]} 8. Qe2 {[%emt 0:00:25]} b5 {[%emt 0:00:03] 8...Bd6 deserves study.} 9. b3 {[%emt 0:00:40] E04: Open Catalan: 5 Nf3.} cxb3 {[%emt 0:00:04]} 10. axb3 {[%emt 0:00:07]} Be7 {[%emt 0:00:05]} 11. Bd2 {[%emt 0:05:00][%mdl 1024] White has compensation. White is slightly better.} O-O {[%emt 0:00:18]} 12. Rc1 {[%emt 0:00:50]} Bd6 {[%emt 0:00:04]} 13. Ne1 {[%emt 0:03:55]} Qe8 $1 {[%emt 0:00:02]} 14. Nd3 {[%emt 0:05:34]} e5 {[%emt 1:35:59] [#]} 15. d5 $146 {[%emt 0:11:55]} (15. Nxe5 $11 Nxe5 16. Bxa8 Qxa8 17. dxe5) ({Predecessor:} 15. Bxc6 Bxc6 16. Rxc6 Qxc6 17. dxe5 Bxe5 18. Nxe5 Qd5 19. Nf3 Qxb3 20. Ba5 c5 21. Nbd2 {0-1 (38) Kunte,A (2485)-Short,N (2636) Bangkok 2019}) 15... Ne7 $15 {[%emt 0:00:00]} 16. e4 $1 {[%emt 0:00:55]} c6 {[%emt 0:00:00][%cal Rc6d5]} 17. Bg5 {[%emt 0:13:21]} cxd5 {[%emt 0:00:00]} 18. Bxf6 {[%emt 0:04:07]} gxf6 {[%emt 0:00:00]} 19. exd5 {[%emt 0:00:08]} f5 {[%emt 0:00:00]} 20. Nd2 {[%emt 0:02:51][%cal Bb1d2,Bd2b3,Bb3a5][%mdl 32]} Ng6 {[%emt 0:00:00]} 21. Qh5 {[%emt 0:07:09]} (21. b4 $15) 21... Kg7 {[%emt 0:00:00]} (21... e4 $17 22. Nc5 Bxc5 23. Rxc5 Qe5) 22. b4 {[%emt 0:12:15]} e4 {[%emt 0:00:00]} 23. Nc5 {[%emt 0:00:07]} Bc8 {[%emt 0:00:00]} 24. Ndb3 {[%emt 0:06:46]} Qe5 {[%emt 0:00:00] Inhibits Nd4.} 25. Rd1 {[%emt 0:02:04]} Rd8 {[%emt 0:00:00]} 26. Rac1 $1 {[%emt 0:04:41]} Ne7 {[%emt 0:00:00]} 27. Na5 {[%emt 0:03:34]} Qf6 {[%emt 0:00:00]} 28. Qe2 {[%emt 0:06:35]} ({Of course not} 28. Nc6 Nxc6 29. dxc6 Bxc5 30. Rxc5 Rxd1+ 31. Qxd1 a5 32. bxa5 (32. Rxb5 axb4 33. Rxb4 Ra1 $17) 32... Rxa5 $17) 28... Be5 {[%emt 0:00:00]} 29. Nc6 $1 {[%emt 0:02:39] Pair of Knights!} Rxd5 {[%emt 0:00:00]} (29... Nxc6 {is interesting.} 30. dxc6 Rxd1+ 31. Qxd1 Qd6) 30. Rxd5 {[%emt 0:00:22]} (30. Nxe4 $11 Rxd1+ 31. Qxd1 fxe4 32. Nxe7 Qxe7 33. Rxc8 Rxc8 34. Qg4+ Kh6 35. Qh3+ Kg7 36. Qg4+ Kh6 37. Qh3+ Kg7 38. Qg4+) 30... Nxd5 $17 {[%emt 0:00:00]} 31. Nxe5 {[%emt 0:00:39]} Qxe5 {[%emt 0:00:00]} 32. Qh5 {[%emt 0:00:43]} Nf6 {[%emt 0:02:37]} (32... f6 $17 33. Qd1 Be6) 33. Qg5+ $11 {[%emt 0:00:16]} Kh8 {[%emt 0:00:01]} 34. Nd3 {[%emt 0:07:33]} (34. Nxe4 $11 Nxe4 35. Bxe4 Qxe4 36. Qf6+ Kg8 37. Qd8+ Kg7 38. Qg5+ Kh8 39. Qf6+ Kg8 40. Qd8+ Kg7 41. Qg5+ Kh8) 34... Qd4 $17 {[%emt 0:02:40]} 35. Nf4 {[%emt 0:00:26][%cal Of4d5] [#]} Bd7 $1 {[%emt 0:00:25]} 36. Nh5 {[%emt 0:00:30]} (36. Ne2 $17 Qb2 37. Rd1) 36... Nxh5 $19 {[%emt 0:00:45]} ({And not} 36... Ng4 37. Qf4 $17) 37. Qxh5 {[%emt 0:00:03] Strongly threatening Rd1.} Be6 {[%emt 0:00:43]} 38. h4 $2 {[%emt 0:01:02] This costs White the game.} (38. Qh6 $17) 38... Rg8 {[%emt 0:00:26]} 39. Qh6 {[%emt 0:00:09]} (39. Qd1 $142 Qxb4 40. Kh2) 39... Rxg3 {[%emt 0:01:08]} 40. Kh2 {[%emt 0:00:00]} Rg8 {[%emt 0:00:00]} (40... Qxf2 $142 41. Qf8+ Rg8 42. Qxg8+ Kxg8 43. Kh1 e3 44. Rf1 Qxh4+ 45. Kg1 e2 46. Rb1 f4 47. Bc6 Qg3+ 48. Kh1 f3 49. Bxf3 Qxf3+ 50. Kg1 Qg3+ 51. Kh1 Bd5#) 41. Qf4 {[%emt 0:01:57]} Rg4 {[%emt 0:02:00]} 42. Qh6 {[%emt 0:02:24]} Qg7 {[%emt 0:00:57]} (42... Qxf2 $142 43. Qf8+ Rg8 44. Qxg8+ Kxg8 45. Kh1 e3 46. Rf1 Qxh4+ 47. Kg1 e2 48. Rc1 f4 49. Be4 Qg3+ 50. Kh1 f3 51. Bxf3 Qxf3+ 52. Kh2 Qf2+ 53. Kh1 Bd5#) 43. Qxg7+ {[%emt 0:01:53] Black is clearly winning.} Kxg7 {[%emt 0:00:17][%mdl 4096] Endgame KRB-KRB} 44. Bh3 {[%emt 0:01:56]} Rxh4 {[%emt 0:00:23] [#] Threatens to win with ...f4.} 45. Kg3 {[%emt 0:00:25]} Rh6 {[%emt 0:00:06][%cal Of5f4] White must now prevent ...f4+!} 46. Bf1 {[%emt 0:00:16]} Bc4 {[%emt 0:01:34] Inhibits Be2.} 47. Bxc4 {[%emt 0:00:37] KRB-KR} Rc6 {[%emt 0:00:12]} 48. Kf4 {[%emt 0:00:24]} Rxc4 {[%emt 0:00:48] KR-KR} 49. Rg1+ {[%emt 0:00:05]} Kf6 {[%emt 0:00:06] ( -> ...Rc3)} 50. Rh1 {[%emt 0:00:04]} Rxb4 {[%emt 0:00:27]} 51. Rh6+ {[%emt 0:00:05]} Kg7 {[%emt 0:00:18]} 52. Rxa6 {[%emt 0:00:03]} Rb2 {[%emt 0:00:07]} 53. Kxf5 {[%emt 0:00:19]} Rxf2+ {[%emt 0:00:05]} 54. Kxe4 {[%emt 0:00:04]} Rf6 {[%emt 0:00:16] Weighted Error Value: White=0.74/Black=0.40} 0-1

[Event "2nd Serbia Open Masters 2022"]
[Site "Novi Sad"]
[Date "2022.06.30"]
[Round "3.35"]
[White "Jain Kashish Manoj"]
[Black "Nitish Belurkar"]
[Result "1/2-1/2"]
[ECO "C18"]
[WhiteElo "2271"]
[BlackElo "2452"]
[Annotator "TA"]
[PlyCount "104"]
[EventDate "2022.06.28"]
[EventType "swiss"]
[EventCountry "SRB"]
[SourceTitle "playchess.com"]
[Source "ChessBase"]
[SourceQuality "1"]
[TimeControl "40/5400+30:900+30"]

{[%evp 17,103,14,31,2,15,8,6,6,22,35,26,23,20,0,20,4,0,0,0,5,4,14,6,0,0,0,0,-12,0,-9,-8,-8,0,-8,-10,-12,-10,-11,0,0,0,0,0,0,0,0,0,0,0,0,0,0,0,0,0,0,0,0,0,0,0,0,0,0,0,0,0,0,0,0,0,0,0,0,0,0,0,0,0,0,0,0,0,0,0,0,0,0]} 1. e4 {[%emt 0:00:09]} e6 {[%emt 0:01:44]} 2. d4 {[%emt 0:00:07]} d5 {[%emt 0:00:02]} 3. Nc3 {[%emt 0:00:06]} Bb4 {[%emt 0:00:08]} 4. e5 {[%emt 0:00:09]} c5 {[%emt 0:00:13]} 5. a3 {[%emt 0:00:07]} Bxc3+ {[%emt 0:00:04]} 6. bxc3 {[%emt 0:00:03]} Ne7 {[%emt 0:00:09]} 7. Qg4 {[%emt 0:00:08]} Qc7 {[%emt 0:00:16]} 8. Qxg7 {[%emt 0:00:19]} Rg8 {[%emt 0:00:05]} 9. Qxh7 {[%emt 0:00:05]} cxd4 {[%emt 0:00:04]} 10. Qd3 {[%emt 0:00:05] C18: French: 3 Nc3 Bb4: Main line: 7 h4 and 7 Qg4.} (10. Ne2 $5 {[%cal Rc3d4]}) 10... Qxe5+ {[%emt 0:00:13]} 11. Ne2 $1 {[%emt 0:00:09]} (11. Qe2 Qc7 12. Qd3 Qxc3+ 13. Qxc3 dxc3 $15) 11... dxc3 {[%emt 0:00:08]} 12. Qxc3 $1 {[%emt 0:00:07] 12.Qxc3 scores better than 12.Bf4.} Qxc3+ {[%emt 0:00:04]} 13. Nxc3 {[%emt 0:00:06]} Nbc6 {[%emt 0:00:05]} 14. h4 {[%emt 0:00:11]} Nd4 {[%emt 0:01:14] [#]} 15. Rb1 $146 {[%emt 0:00:37] The position is equal.} ({Predecessor:} 15. Bd3 f6 16. h5 Kf7 17. h6 e5 18. Be3 Ndf5 19. Bc5 b6 20. Bxe7 Nxe7 21. a4 {½-½ (32) Pappier,C (2488)-Tauber,H (2501) ICCF email 2020}) 15... f6 {[%emt 0:04:58]} 16. Ne2 {[%emt 0:00:23]} Ndc6 {[%emt 0:12:51]} ({Don't play} 16... Nxc2+ 17. Kd1 $16) 17. h5 {[%emt 0:06:44]} b6 {[%emt 0:04:13]} 18. Ng3 {[%emt 0:02:20]} Kf7 {[%emt 0:03:29]} 19. h6 {[%emt 0:16:44]} e5 {[%emt 0:05:08]} 20. Be2 {[%emt 0:11:33]} Nf5 {[%emt 0:10:47]} 21. Bh5+ {[%emt 0:07:18]} Ke7 {[%emt 0:01:50]} 22. Ne2 {[%emt 0:13:25]} Be6 {[%emt 0:09:09]} 23. g4 {[%emt 0:15:57]} Nfd4 {[%emt 0:07:03]} 24. Nxd4 {[%emt 0:08:08]} Nxd4 {[%emt 0:00:25]} 25. c3 $132 {[%emt 0:05:53][%mdl 2048] White is not keeping still} Nf3+ {[%emt 0:04:14]} 26. Ke2 {[%emt 0:00:09]} e4 {[%emt 0:08:41]} 27. Be3 {[%emt 0:08:02]} Rac8 {[%emt 0:03:07]} 28. g5 {[%emt 0:00:23]} ({But not} 28. h7 Rh8 29. g5 Nxg5 $17) 28... Nxg5 {[%emt 0:01:12]} 29. Kd2 $1 {[%emt 0:02:00]} Rh8 {[%emt 0:07:54]} 30. Be2 {[%emt 0:00:37]} Rcg8 {[%emt 0:00:21]} 31. a4 {[%emt 0:00:35][%cal Oa4a5]} Rg6 {[%emt 0:01:48]} 32. a5 {[%emt 0:02:09]} Rgxh6 {[%emt 0:00:14]} 33. Rxh6 {[%emt 0:00:08]} (33. Rhg1 {with more complications.} R6h7 34. axb6 axb6 35. Rxb6 Ra8 36. Rb2) 33... Rxh6 {[%emt 0:00:06]} 34. axb6 {[%emt 0:00:14]} axb6 {[%emt 0:00:03]} 35. Rxb6 {[%emt 0:00:16]} Kf7 {[%emt 0:00:23]} 36. c4 {[%emt 0:01:05]} dxc4 {[%emt 0:01:24]} 37. Bxg5 {[%emt 0:00:44]} fxg5 {[%emt 0:00:14]} 38. Bxc4 {[%emt 0:00:09]} Ke7 {[%emt 0:02:40]} 39. Bxe6 {[%emt 0:00:20]} Rxe6 {[%emt 0:00:02]} 40. Rxe6+ {[%emt 0:00:00]} Kxe6 $11 {[%emt 0:00:00][%mdl 4096] Endgame KPP-KP} 41. Ke3 {[%emt 0:00:53]} Kf5 {[%emt 0:00:20]} 42. f3 {[%emt 0:00:04]} exf3 {[%emt 0:00:05]} 43. Kxf3 {[%emt 0:00:01][%cal Be3f3,Bf3g3,Bg3g2,Bg2f2][%mdl 32] KP-K} g4+ {[%emt 0:00:00][%cal Bg5g4,Bg4g3,Bg3g2][%mdl 32]} 44. Kg3 {[%emt 0:00:10]} Kg5 {[%emt 0:00:03]} 45. Kg2 {[%emt 0:00:05]} Kf4 {[%emt 0:00:02]} 46. Kf2 {[%emt 0:00:04]} g3+ {[%emt 0:00:03]} 47. Kg2 {[%emt 0:00:04]} Kg4 {[%emt 0:00:03]} 48. Kg1 {[%emt 0:00:06]} Kh4 {[%emt 0:00:03]} (48... Kf4 $5) 49. Kg2 {[%emt 0:00:03]} Kg4 {[%emt 0:00:03][%cal Bh4g4,Bg4h3,Bh3g3][%mdl 32]} 50. Kg1 {[%emt 0:00:04]} Kh3 {[%emt 0:00:01] [#] ( -> ...g2)} 51. Kh1 {[%emt 0:00:05]} g2+ {[%emt 0:00:04]} 52. Kg1 {[%emt 0:00:02]} Kg3 {[%emt 0:00:03] An even fight not without its subleties.  Weighted Error Value: White=0.03 (flawless) /Black=0.02 (flawless)} 1/2-1/2